bitfinex-derivatives/quotes_BTCF0:USTF0_20250106
["timestamp","ask_amount","ask_price","bid_price","bid_amount"]
[1736176652645,0.049352,101320.0,101310.0,1.882154]
[1736176652848,0.049352,101320.0,101310.0,1.876154]
[1736176653056,0.049352,101320.0,101310.0,1.879154]
[1736176653840,0.049352,101320.0,101310.0,2.03432311]
[1736176654040,0.049352,101320.0,101310.0,2.02832311]
[1736176654646,0.050352,101320.0,101310.0,1.879154]
[1736176655149,0.050352,101320.0,101310.0,1.517354]
[1736176655353,0.049352,101320.0,101310.0,1.874154]
[1736176655558,0.049352,101320.0,101310.0,2.02932311]
[1736176656649,0.049352,101320.0,101310.0,1.513354]
[1736176657256,0.049352,101320.0,101310.0,1.874154]
[1736176657458,0.049352,101320.0,101310.0,1.872154]
[1736176657651,0.049348,101330.0,101320.0,0.049348]
[1736176657852,0.049348,101330.0,101320.0,0.410148]
[1736176658163,0.0599492,101340.0,101330.0,0.049347]
[1736176658354,0.0106062,101340.0,101330.0,0.90491611]
[1736176658559,0.20552073,101340.0,101330.0,0.90491611]
[1736176658761,0.20552073,101340.0,101330.0,2.36491611]
[1736176659559,0.25486273,101340.0,101330.0,2.209747]
[1736176659753,0.20552073,101340.0,101330.0,2.209747]
[1736176660148,0.05082077,101350.0,101330.0,2.209747]
[1736176660349,0.02029715,101350.0,101340.0,0.56531111]
[1736176660553,0.01881743,101350.0,101340.0,0.56531111]
[1736176660757,0.25485473,101360.0,101350.0,0.049337]
[1736176660954,0.20552073,101360.0,101350.0,0.56530611]
[1736176661357,0.1180194,101370.0,101360.0,0.049332]
[1736176661550,0.32165338,101380.0,101370.0,0.049327]
[1736176661751,0.32165338,101380.0,101370.0,0.56529611]
[1736176663359,0.098641,101390.0,101370.0,0.51596911]
[1736176663550,0.04932,101390.0,101380.0,0.3608]
[1736176663955,0.04932,101390.0,101380.0,0.049323]
[1736176664164,0.049323,101380.0,101370.0,0.052326]
[1736176664556,0.049323,101380.0,101370.0,0.058326]
[1736176664967,0.049323,101380.0,101360.0,0.89539911]
[1736176665264,0.049323,101380.0,101370.0,0.3608]
[1736176665566,0.05999501,101390.0,101380.0,0.049323]
[1736176665762,0.05999501,101390.0,101380.0,0.56529211]
[1736176666160,0.05999501,101390.0,101380.0,1.870123]
[1736176666664,0.05999501,101390.0,101380.0,0.410123]
[1736176666853,0.42079501,101390.0,101370.0,0.004]
[1736176667054,0.037,101360.0,101340.0,0.16754026]
[1736176667255,0.049342,101340.0,101330.0,0.22420478]
[1736176667461,0.56531111,101340.0,101330.0,0.27355178]
[1736176667763,0.56531111,101340.0,101330.0,0.27923378]
[1736176667965,0.56531111,101340.0,101330.0,0.32858078]
[1736176668354,0.56731111,101340.0,101330.0,0.32858078]
[1736176669153,0.56731111,101340.0,101330.0,0.049347]
[1736176669561,0.56731111,101340.0,101330.0,0.051347]
[1736176669761,0.051342,101340.0,101330.0,0.051347]
[1736176669966,0.002,101340.0,101330.0,0.412147]
[1736176670169,0.002,101340.0,101330.0,0.729847]
[1736176670365,0.049336,101360.0,101350.0,0.049337]
[1736176670667,0.049336,101360.0,101350.0,0.410137]
[1736176671568,0.051336,101360.0,101350.0,0.410137]
[1736176671961,0.057336,101360.0,101350.0,0.410137]
[1736176672367,0.418136,101360.0,101350.0,1.509337]
[1736176673068,0.21250511,101360.0,101350.0,1.509337]
[1736176673364,0.008,101360.0,101350.0,1.870137]
[1736176673772,0.057331,101360.0,101350.0,2.170737]
[1736176674167,0.21250011,101360.0,101350.0,1.809937]
[1736176674372,0.416131,101360.0,101350.0,1.509337]
[1736176674568,0.410131,101360.0,101350.0,1.511337]
[1736176675078,0.410131,101360.0,101350.0,1.462]
[1736176675368,0.56530011,101360.0,101350.0,1.463]
[1736176675574,0.56530011,101360.0,101350.0,0.003]
[1736176675875,0.86740011,101360.0,101350.0,0.003]
[1736176676077,0.712231,101360.0,101350.0,0.001]
[1736176676276,0.049336,101350.0,101340.0,0.049339]
[1736176676575,0.410136,101350.0,101340.0,0.049339]
[1736176677872,0.049336,101350.0,101340.0,0.049339]
[1736176678079,0.14596791,101370.0,101360.0,0.049331]
[1736176678271,0.58728786,101380.0,101370.0,0.049326]
[1736176678471,0.58728786,101380.0,101370.0,0.20449511]
[1736176678776,0.58728786,101380.0,101370.0,1.52449511]
[1736176678777,0.22648786,101380.0,101370.0,1.52449511]
[1736176678973,0.22648786,101380.0,101370.0,1.369326]
[1736176679165,0.05080239,101380.0,101370.0,1.369326]
[1736176679571,0.049327,101370.0,101360.0,0.049328]
[1736176679774,0.410127,101370.0,101360.0,0.049328]
[1736176680074,0.410127,101370.0,101360.0,1.369328]
[1736176680473,0.049327,101370.0,101360.0,1.88529711]
[1736176680671,0.00148039,101380.0,101370.0,0.049326]
[1736176680977,0.79973296,101400.0,101390.0,0.049317]
[1736176680978,0.1,101400.0,101390.0,0.049317]
[1736176681370,0.1,101400.0,101390.0,0.410117]
[1736176681675,0.149312,101400.0,101390.0,0.410117]
[1736176681877,0.149312,101400.0,101390.0,0.56528611]
[1736176682071,0.102,101400.0,101390.0,0.56528611]
[1736176682277,0.102,101400.0,101390.0,1.730117]
[1736176682475,0.154312,101400.0,101390.0,1.730117]
[1736176682677,0.105,101400.0,101390.0,1.88528611]
[1736176683373,0.105,101400.0,101390.0,1.730117]
[1736176683570,0.154312,101400.0,101390.0,1.730117]
[1736176683881,0.154312,101400.0,101390.0,1.88528611]
[1736176684079,0.105,101400.0,101390.0,1.88528611]
[1736176684571,0.4101,101430.0,101420.0,0.049302]
[1736176685081,0.1771652,101440.0,101430.0,0.049297]
[1736176685374,0.22497747,101440.0,101430.0,0.049297]
[1736176685681,0.22497747,101440.0,101430.0,1.369297]
[1736176686181,0.4207435,101450.0,101440.0,0.049292]
[1736176686876,0.049292,101440.0,101430.0,1.369296]
[1736176687068,0.049292,101440.0,101420.0,0.51896911]
[1736176687069,0.049297,101430.0,101420.0,0.003]
[1736176687265,0.049297,101430.0,101420.0,0.052302]
[1736176687468,0.410097,101430.0,101420.0,0.051302]
[1736176687772,0.51596911,101430.0,101410.0,0.049306]
[1736176687974,0.3608,101420.0,101410.0,0.20447511]
[1736176688180,0.410099,101430.0,101420.0,0.049302]
[1736176689775,0.410099,101430.0,101420.0,0.052302]
[1736176690779,0.049294,101440.0,101430.0,0.049294]
[1736176690976,0.365189,101450.0,101430.0,0.56526311]
[1736176691177,0.049289,101450.0,101440.0,0.20446111]
[1736176691475,0.049285,101460.0,101440.0,0.3608]
[1736176691775,0.410085,101460.0,101450.0,0.049287]
[1736176692383,0.410085,101460.0,101450.0,1.369287]
[1736176692583,0.51596911,101460.0,101440.0,0.049292]
[1736176692772,0.3608,101450.0,101440.0,0.049292]
[1736176692971,0.410089,101450.0,101440.0,0.049292]
[1736176693172,0.001,101460.0,101440.0,1.83596911]
[1736176693374,0.050284,101460.0,101450.0,0.049287]
[1736176693572,0.050284,101460.0,101450.0,0.363287]
[1736176694277,0.05075217,101480.0,101470.0,0.049278]
[1736176694476,0.05075217,101480.0,101470.0,0.56524711]
[1736176694675,0.00147917,101480.0,101470.0,0.20444711]
[1736176694878,0.00147917,101480.0,101470.0,1.52444711]
[1736176695078,0.00147917,101480.0,101470.0,1.88524711]
[1736176695381,0.7711,101500.0,101490.0,0.049268]
[1736176695382,0.105,101500.0,101490.0,0.049268]
[1736176695682,0.105,101500.0,101490.0,0.20443711]
[1736176696278,0.17568547,101510.0,101500.0,1.039263]
[1736176696470,0.17568547,101510.0,101500.0,1.89343211]
[1736176696674,0.410056,101520.0,101500.0,1.53263211]
[1736176696882,0.049256,101520.0,101510.0,0.20442711]
[1736176697381,0.3608,101530.0,101510.0,0.20442711]
[1736176697382,0.410049,101530.0,101520.0,0.049254]
[1736176697581,0.410049,101530.0,101520.0,0.20442311]
[1736176697785,0.410049,101530.0,101510.0,0.20442511]
[1736176697975,0.3608,101520.0,101500.0,1.3282]
[1736176698176,0.3608,101520.0,101500.0,1.48336911]
[1736176698375,0.410055,101520.0,101510.0,0.049258]
[1736176698572,0.3608,101520.0,101510.0,0.20442711]
[1736176698787,0.410049,101530.0,101510.0,0.20442711]
[1736176699175,0.410049,101530.0,101510.0,0.049258]
[1736176699380,0.410049,101530.0,101520.0,0.049253]
[1736176699580,0.049254,101520.0,101510.0,0.049255]
[1736176699884,0.049254,101520.0,101500.0,1.37746]
[1736176699885,0.410054,101520.0,101500.0,1.37746]
[1736176700191,0.64712691,101520.0,101510.0,0.001]
[1736176700376,0.770854,101520.0,101510.0,0.001]
[1736176700583,0.770854,101520.0,101500.0,1.400061]
[1736176700584,0.049254,101520.0,101500.0,1.400061]
[1736176700784,0.049254,101520.0,101510.0,0.049258]
[1736176701484,0.41405,101530.0,101510.0,0.098513]
[1736176701678,0.41405,101530.0,101510.0,0.049255]
[1736176701870,0.41405,101530.0,101510.0,0.40391]
[1736176702076,0.049253,101520.0,101510.0,0.354655]
[1736176702279,0.410053,101520.0,101510.0,0.354655]
[1736176702483,0.051253,101520.0,101510.0,0.354655]
[1736176703276,0.049253,101520.0,101510.0,0.354655]
[1736176703482,0.3608,101530.0,101510.0,0.354655]
[1736176703678,0.37132364,101540.0,101510.0,0.90327291]
[1736176703877,0.37132364,101540.0,101520.0,0.049251]
[1736176703878,0.049249,101530.0,101520.0,0.049251]
[1736176704281,0.049253,101530.0,101510.0,0.354656]
[1736176704481,0.049253,101530.0,101510.0,0.715456]
[1736176704684,0.3608,101530.0,101510.0,0.354656]
[1736176704885,0.049253,101520.0,101510.0,0.354656]
[1736176705081,0.410054,101520.0,101500.0,2.720582]
[1736176705281,0.049254,101520.0,101510.0,0.049258]
[1736176705473,0.3608,101530.0,101500.0,3.27183591]
[1736176705779,0.412051,101530.0,101520.0,0.049253]
[1736176705986,0.002,101530.0,101520.0,0.410053]
[1736176706279,0.002,101530.0,101520.0,0.64712591]
[1736176706477,0.05071712,101550.0,101540.0,0.049244]
[1736176706678,0.41151712,101550.0,101540.0,0.049244]
[1736176706879,0.05071712,101550.0,101540.0,0.049244]
[1736176707187,0.05071712,101550.0,101540.0,1.369244]
[1736176707388,0.00147812,101550.0,101540.0,1.369244]
[1736176707582,0.410036,101560.0,101540.0,1.369244]
[1736176707879,0.410036,101560.0,101540.0,1.370244]
[1736176708087,0.410035,101560.0,101550.0,0.049239]
[1736176708281,0.410031,101570.0,101560.0,0.049234]
[1736176708474,1.17967741,101580.0,101550.0,0.59787291]
[1736176708680,0.89734241,101580.0,101570.0,0.049229]
[1736176708878,0.89734241,101580.0,101570.0,0.04905721]
[1736176709080,0.41150241,101580.0,101570.0,0.04905721]
[1736176709278,4.284e-05,101590.0,101580.0,0.049224]
[1736176709484,0.01033264,101590.0,101580.0,0.049224]
[1736176709789,4.284e-05,101590.0,101580.0,0.049224]
[1736176710283,0.049224,101580.0,101570.0,0.001]
[1736176710489,0.049224,101580.0,101570.0,0.23807291]
[1736176710680,0.049224,101580.0,101570.0,0.28630191]
[1736176710878,0.410024,101580.0,101570.0,0.049229]
[1736176711285,0.049224,101580.0,101570.0,0.049229]
[1736176711485,0.36084284,101590.0,101580.0,0.049224]
[1736176711486,0.41006384,101590.0,101580.0,0.049224]
[1736176711689,0.36084284,101590.0,101560.0,0.92847291]
[1736176711983,0.410029,101570.0,101560.0,0.379834]
[1736176712188,0.415026,101580.0,101570.0,0.049229]
[1736176712388,0.054226,101580.0,101570.0,0.28630191]
[1736176712593,0.005,101580.0,101570.0,0.28630191]
[1736176712785,0.049224,101580.0,101570.0,0.049229]
[1736176713283,0.3608,101580.0,101560.0,1.699832]
[1736176713484,0.049234,101560.0,101550.0,0.00147697]
[1736176713686,0.410034,101560.0,101550.0,0.00147697]
[1736176714187,0.410034,101560.0,101540.0,0.3021]
[1736176714381,0.3608,101550.0,101520.0,0.94922391]
[1736176714586,0.3608,101550.0,101520.0,1.671351]
[1736176714587,0.410048,101530.0,101520.0,1.671351]
[1736176714785,0.410048,101530.0,101520.0,1.32]
[1736176715290,0.049253,101520.0,101510.0,0.00147761]
[1736176715486,0.410053,101520.0,101510.0,0.00147761]
[1736176715693,0.410053,101520.0,101510.0,1.32147761]
[1736176715891,0.3608,101530.0,101510.0,1.91935052]
[1736176716189,0.411049,101530.0,101520.0,0.007]
[1736176716379,0.771849,101530.0,101520.0,0.007]
[1736176717188,1.00892191,101530.0,101520.0,0.007]
[1736176717382,1.30892191,101530.0,101510.0,1.32]
[1736176717583,0.049258,101510.0,101470.0,0.00147838]
[1736176717793,0.410076,101480.0,101470.0,0.00147838]
[1736176718487,0.410069,101490.0,101480.0,0.049273]
[1736176718884,0.410069,101490.0,101470.0,0.64862729]
[1736176719393,0.001,101480.0,101470.0,0.41855438]
[1736176720193,0.410073,101480.0,101470.0,0.00147838]
[1736176720393,0.64714591,101480.0,101470.0,0.00147838]
[1736176720593,0.410073,101480.0,101470.0,0.00147838]
[1736176720987,0.410073,101480.0,101470.0,0.01047838]
[1736176721386,0.049269,101490.0,101470.0,0.52523379]
[1736176721593,0.410065,101500.0,101480.0,0.410069]
[1736176721793,0.410065,101500.0,101490.0,0.049268]
[1736176722093,0.56402041,101500.0,101480.0,0.049271]
[1736176722294,0.049273,101480.0,101470.0,0.01047838]
[1736176722482,0.410073,101480.0,101470.0,0.01047838]
[1736176722688,0.56402841,101480.0,101470.0,0.01047838]
[1736176722891,0.410073,101480.0,101470.0,0.01047838]
[1736176723294,0.56402841,101480.0,101470.0,0.01047838]
[1736176723491,0.56402841,101480.0,101470.0,0.00147838]
[1736176723686,0.71798382,101480.0,101470.0,0.01047838]
[1736176723891,0.71798382,101480.0,101430.0,0.90920501]
[1736176723892,0.049288,101450.0,101430.0,0.3608]
[1736176724095,0.049289,101450.0,101430.0,0.56405241]
[1736176724289,0.3608,101450.0,101440.0,0.20324741]
[1736176724487,0.895804,101460.0,101440.0,0.049292]
[1736176724688,0.410087,101450.0,101440.0,0.049292]
[1736176725183,0.001,101450.0,101440.0,0.049292]
[1736176725389,0.001,101450.0,101440.0,0.56404741]
[1736176725883,0.410079,101470.0,101440.0,0.56404741]
[1736176726089,0.56403441,101470.0,101450.0,0.410085]
[1736176726284,0.049279,101470.0,101460.0,0.3608]
[1736176726504,0.410074,101480.0,101470.0,0.049278]
[1736176727293,0.6825753,101510.0,101480.0,0.049273]
[1736176727500,0.56402641,101490.0,101470.0,0.049277]
[1736176727690,0.410073,101480.0,101470.0,0.049277]
[1736176728294,0.410073,101480.0,101460.0,0.3066]
[1736176728492,0.049278,101470.0,101460.0,0.355882]
[1736176728688,0.20323341,101470.0,101460.0,0.3066]
[1736176728886,0.56503341,101470.0,101450.0,0.410087]
[1736176729099,0.049282,101460.0,101450.0,0.410087]
[1736176729292,0.049282,101460.0,101450.0,0.049287]
[1736176730194,0.049287,101450.0,101440.0,0.355791]
[1736176730390,0.049294,101440.0,101430.0,0.049296]
[1736176731111,0.049289,101450.0,101440.0,0.049292]
[1736176731391,0.3608,101460.0,101440.0,0.049287]
[1736176731596,0.049283,101460.0,101450.0,0.049283]
[1736176732390,0.049287,101450.0,101440.0,0.001]
[1736176732594,0.64747661,101450.0,101440.0,0.001]
[1736176732990,0.049292,101440.0,101430.0,0.049296]
[1736176733399,0.410088,101450.0,101440.0,0.049292]
[1736176733899,0.049292,101440.0,101430.0,0.049294]
[1736176734103,0.049297,101430.0,101420.0,0.71807899]
[1736176734303,0.049297,101430.0,101420.0,0.35727899]
[1736176734903,0.3608,101440.0,101420.0,0.35727899]
[1736176734904,0.049293,101440.0,101430.0,0.049294]
[1736176735205,0.41009,101450.0,101440.0,0.049292]
[1736176736198,0.04929,101450.0,101440.0,0.410092]
[1736176736399,0.04929,101450.0,101440.0,0.28668161]
[1736176736697,0.04929,101450.0,101440.0,0.049292]
[1736176737600,0.04929,101450.0,101440.0,0.051292]
[1736176738206,0.410087,101460.0,101440.0,0.007]
[1736176738403,0.049287,101450.0,101440.0,0.056291]
[1736176738600,0.410087,101450.0,101440.0,0.056291]
[1736176738801,0.410087,101450.0,101440.0,0.058291]
[1736176739299,0.410087,101450.0,101440.0,0.009]
[1736176739499,0.410087,101450.0,101440.0,0.055292]
[1736176739697,0.410087,101450.0,101440.0,0.056292]
[1736176740202,0.410084,101460.0,101450.0,0.049287]
[1736176740800,0.4115568,101470.0,101460.0,0.049282]
[1736176741002,0.0014788,101470.0,101460.0,0.64747161]
[1736176741303,0.36257401,101480.0,101470.0,0.049276]
[1736176741304,0.049275,101480.0,101470.0,0.049276]
[1736176741804,0.41007,101490.0,101480.0,0.049273]
[1736176742212,0.26215427,101490.0,101480.0,0.049273]
[1736176743306,0.049273,101480.0,101470.0,0.411076]
[1736176743506,0.049273,101480.0,101470.0,0.050276]
[1736176743703,0.049273,101480.0,101470.0,0.411076]
[1736176744003,0.05073861,101510.0,101500.0,0.049263]
[1736176744205,0.05073861,101510.0,101500.0,0.410063]
[1736176744596,0.05073861,101510.0,101500.0,0.3608]
[1736176744798,0.05073861,101510.0,101500.0,0.410063]
[1736176744996,0.05073861,101510.0,101500.0,0.049263]
[1736176745197,0.049263,101500.0,101490.0,0.95434308]
[1736176745402,0.049263,101500.0,101490.0,0.27084308]
[1736176745706,0.64745261,101500.0,101490.0,0.22157608]
[1736176745903,0.049268,101490.0,101480.0,0.2769701]
[1736176746109,0.410068,101490.0,101480.0,0.2769701]
[1736176746312,0.410068,101490.0,101480.0,0.22447489]
[1736176747200,0.410068,101490.0,101480.0,0.27374789]
[1736176747398,0.410068,101490.0,101480.0,0.049273]
[1736176748106,0.001,101500.0,101490.0,0.049268]
[1736176748305,0.001,101500.0,101490.0,0.64745761]
[1736176748502,0.00147861,101510.0,101500.0,0.049263]
[1736176748697,0.05073661,101510.0,101500.0,0.049263]
[1736176749006,0.00147861,101510.0,101500.0,0.049263]
[1736176749205,0.00147861,101510.0,101500.0,0.56388602]
[1736176750003,0.84664,101540.0,101530.0,0.049248]
[1736176750307,0.15633267,101580.0,101530.0,0.56386802]
[1736176750308,0.36227762,101570.0,101530.0,0.56386802]
[1736176750505,0.36227762,101570.0,101560.0,0.049234]
[1736176750704,0.41150662,101570.0,101560.0,0.049234]
[1736176750901,0.56532964,101570.0,101560.0,0.049234]
[1736176751106,0.049239,101550.0,101540.0,0.049241]
[1736176751307,0.64705621,101550.0,101530.0,0.049248]
[1736176751505,0.049248,101530.0,101510.0,0.6925]
[1736176751702,0.410048,101530.0,101510.0,0.741755]
[1736176751902,0.410048,101530.0,101520.0,0.3262231]
[1736176752115,0.410048,101530.0,101520.0,0.2769701]
[1736176752808,0.521448,101530.0,101520.0,0.2769701]
[1736176753005,0.1114,101530.0,101520.0,0.049253]
[1736176753403,0.160648,101530.0,101520.0,0.049253]
[1736176753703,0.1114,101530.0,101520.0,0.410053]
[1736176754214,0.160648,101530.0,101520.0,0.410053]
[1736176755310,0.049253,101520.0,101510.0,0.3317]
[1736176755611,0.049258,101510.0,101490.0,0.6900409]
[1736176755804,0.410058,101510.0,101490.0,0.6900379]
[1736176756115,0.049258,101510.0,101500.0,0.049263]
[1736176757208,0.049258,101510.0,101500.0,0.410062]
[1736176757710,0.049258,101510.0,101500.0,0.419062]
[1736176758008,0.049255,101520.0,101510.0,0.049257]
[1736176758212,0.049255,101520.0,101510.0,0.736957]
[1736176758712,0.049255,101520.0,101510.0,0.376157]
[1736176759010,0.049255,101520.0,101510.0,0.3269]
[1736176759011,0.410055,101520.0,101510.0,0.3269]
[1736176759613,0.410055,101520.0,101510.0,0.376158]
[1736176759812,0.049255,101520.0,101510.0,0.376158]
[1736176760005,0.049255,101520.0,101510.0,0.377158]
[1736176760201,0.049255,101520.0,101510.0,0.3279]
[1736176760506,0.64707221,101520.0,101510.0,0.3279]
[1736176760713,0.64707221,101520.0,101510.0,0.001]
[1736176761710,0.049255,101520.0,101510.0,0.001]
[1736176761916,0.049255,101520.0,101510.0,0.3618]
[1736176762114,0.049255,101520.0,101510.0,0.411058]
[1736176763105,0.049255,101520.0,101510.0,0.049258]
[1736176764109,0.3608,101530.0,101510.0,0.049258]
[1736176764310,1.529966,101540.0,101520.0,0.410053]
[1736176764521,0.049248,101530.0,101520.0,0.049251]
[1736176765113,0.049248,101530.0,101520.0,0.740551]
[1736176765314,0.050248,101530.0,101520.0,0.740551]
[1736176767621,0.001,101530.0,101520.0,0.379751]
[1736176768016,0.28726521,101530.0,101520.0,0.379751]
[1736176768423,0.050248,101530.0,101520.0,0.379751]
[1736176768720,0.411048,101530.0,101520.0,0.379751]
[1736176769224,0.3618,101530.0,101520.0,0.379751]
[1736176769433,0.001,101530.0,101520.0,0.740551]
[1736176769620,0.84648,101560.0,101520.0,0.97756821]
[1736176769819,0.04924,101550.0,101540.0,0.049241]
[1736176770120,0.64705721,101550.0,101520.0,0.740551]
[1736176770321,0.28626221,101540.0,101530.0,0.049246]
[1736176770516,0.049248,101530.0,101520.0,0.379751]
[1736176770821,0.410048,101530.0,101520.0,0.379751]
[1736176772315,0.3608,101530.0,101520.0,0.380751]
[1736176772516,0.410048,101530.0,101520.0,0.050251]
[1736176772715,0.410048,101530.0,101520.0,0.051251]
[1736176772915,0.410048,101530.0,101520.0,0.050251]
[1736176773116,0.410047,101540.0,101530.0,0.049248]
[1736176773315,0.41004,101550.0,101540.0,0.049244]
[1736176773516,0.049246,101540.0,101530.0,0.049246]
[1736176773825,0.20296714,101540.0,101530.0,0.049246]
[1736176774017,0.56376714,101540.0,101530.0,0.049246]
[1736176774321,0.56676714,101540.0,101530.0,0.049246]
[1736176774926,0.413046,101540.0,101530.0,0.049246]
[1736176775218,0.003,101540.0,101530.0,0.20296714]
[1736176775418,0.003,101540.0,101530.0,0.56376714]
[1736176776025,0.003,101540.0,101530.0,0.86786714]
[1736176776415,0.003,101540.0,101530.0,1.17286714]
[1736176776917,0.049236,101560.0,101550.0,0.049239]
[1736176777717,0.56523076,101570.0,101560.0,0.049234]
[1736176778224,0.56523076,101570.0,101540.0,0.410042]
[1736176778523,0.20295714,101560.0,101550.0,0.053236]
[1736176778726,0.56375714,101560.0,101550.0,0.053236]
[1736176778915,0.20295714,101560.0,101550.0,0.053236]
[1736176779235,0.56475714,101560.0,101550.0,0.049236]
[1736176779416,0.20395714,101560.0,101550.0,0.049236]
[1736176779931,0.56375714,101560.0,101550.0,0.053236]
[1736176780126,0.56375714,101560.0,101550.0,0.056236]
[1736176780327,0.56375714,101560.0,101550.0,0.007]
[1736176780625,1.01877828,101560.0,101550.0,0.007]
[1736176781425,0.049244,101540.0,101530.0,0.3292209]
[1736176781627,0.410044,101540.0,101530.0,0.3292209]
[1736176782123,0.410044,101540.0,101520.0,0.6737]
[1736176782325,0.410044,101540.0,101530.0,0.049246]
[1736176782524,0.56476514,101540.0,101530.0,0.058246]
[1736176782719,0.56476514,101540.0,101530.0,0.009]
[1736176782927,0.049253,101520.0,101510.0,0.28145155]
[1736176783222,0.049253,101520.0,101500.0,0.58596868]
[1736176783223,1.07829528,101520.0,101500.0,0.58596868]
[1736176783428,1.07829528,101520.0,101490.0,0.39196346]
[1736176783429,1.04933914,101510.0,101490.0,0.39196346]
[1736176783626,0.410063,101500.0,101490.0,0.39196346]
[1736176784026,0.56378414,101500.0,101490.0,0.39196346]
[1736176784227,0.20298414,101500.0,101490.0,0.39196346]
[1736176784422,0.20298414,101500.0,101490.0,0.44123146]
[1736176784423,0.049263,101500.0,101490.0,0.44123146]
[1736176784627,0.410063,101500.0,101490.0,0.049268]
[1736176785229,0.413063,101500.0,101490.0,0.049268]
[1736176785428,0.413063,101500.0,101490.0,0.374368]
[1736176785931,0.049273,101480.0,101470.0,0.36855433]
[1736176786232,0.049273,101480.0,101470.0,1.03545433]
[1736176786634,0.049273,101480.0,101470.0,0.67465433]
[1736176786928,0.049273,101480.0,101470.0,0.30757833]
[1736176786929,0.56379414,101480.0,101470.0,0.30757833]
[1736176787135,0.049273,101480.0,101470.0,0.35685633]
[1736176787321,0.04927,101490.0,101480.0,0.049273]
[1736176788124,0.20299114,101490.0,101480.0,0.049273]
[1736176788427,0.049273,101480.0,101470.0,0.30757833]
[1736176788622,0.410073,101480.0,101470.0,0.30757833]
[1736176788827,0.3608,101500.0,101470.0,0.82209947]
[1736176789031,0.15372114,101500.0,101480.0,0.3608]
[1736176789335,0.049268,101490.0,101480.0,0.410071]
[1736176789636,0.63226433,101520.0,101480.0,0.51452114]
[1736176789935,0.04926,101510.0,101500.0,0.04926]
[1736176790138,0.20298114,101510.0,101500.0,0.37696]
[1736176790522,0.049263,101500.0,101490.0,0.049267]
[1736176790728,0.051263,101500.0,101490.0,0.049267]
[1736176791533,0.049253,101520.0,101510.0,0.049258]
[1736176792036,0.20297414,101520.0,101510.0,0.049258]
[1736176792226,0.20297414,101520.0,101510.0,0.410058]
[1736176792227,0.049253,101520.0,101510.0,0.410058]
[1736176792534,0.16847253,101530.0,101520.0,0.049253]
[1736176792737,0.32219367,101530.0,101520.0,0.049253]
[1736176793142,0.20445048,101530.0,101520.0,0.049253]
[1736176793836,0.050253,101520.0,101510.0,0.356656]
[1736176794529,0.049253,101520.0,101510.0,0.356656]
[1736176795029,0.05072834,101530.0,101520.0,0.049253]
[1736176795239,0.00147834,101530.0,101520.0,0.56377414]
[1736176795943,0.00147834,101530.0,101520.0,0.410053]
[1736176796132,0.410046,101540.0,101520.0,0.56377414]
[1736176796331,0.04924,101550.0,101530.0,0.51452114]
[1736176796637,0.04924,101550.0,101540.0,0.049244]
[1736176796935,0.52777919,101560.0,101550.0,0.049239]
[1736176797259,0.410036,101560.0,101550.0,0.049239]
[1736176798641,0.049236,101560.0,101550.0,0.049239]
[1736176798840,0.051236,101560.0,101550.0,0.049239]
[1736176799440,0.412036,101560.0,101550.0,0.049239]
[1736176799633,0.051236,101560.0,101550.0,0.049239]
[1736176799834,0.412036,101560.0,101550.0,0.049239]
[1736176800239,0.051236,101560.0,101550.0,0.049239]
[1736176800540,0.051236,101560.0,101550.0,0.56376014]
[1736176800541,0.002,101560.0,101550.0,0.56376014]
[1736176800741,0.52743556,101580.0,101570.0,0.049229]
[1736176801042,0.52743556,101580.0,101570.0,0.410029]
[1736176801043,0.16663556,101580.0,101570.0,0.410029]
[1736176801235,0.16663556,101580.0,101560.0,0.049233]
[1736176801236,0.04923,101570.0,101560.0,0.049233]
[1736176801740,0.47821056,101580.0,101550.0,0.81572114]
[1736176801741,0.6319317,101580.0,101550.0,0.81572114]
[1736176801942,0.410034,101560.0,101550.0,0.050238]
[1736176802141,0.049234,101560.0,101550.0,0.050238]
[1736176802341,0.410034,101560.0,101550.0,0.20395914]
[1736176802539,0.41003,101570.0,101550.0,0.56475914]
[1736176802848,0.41003,101570.0,101550.0,0.20395914]
[1736176803044,0.41003,101570.0,101550.0,0.050238]
[1736176803345,0.3608,101570.0,101550.0,0.049238]
[1736176803538,0.049234,101560.0,101550.0,0.20295914]
[1736176803939,0.410025,101580.0,101570.0,0.049229]
[1736176804138,0.52743556,101580.0,101570.0,0.049229]
[1736176804344,0.049231,101570.0,101560.0,0.20295314]
[1736176804838,0.47821056,101580.0,101560.0,0.15372114]
[1736176805036,0.52743656,101580.0,101570.0,0.049229]
[1736176805231,0.412026,101580.0,101570.0,0.049229]
[1736176805440,0.412026,101580.0,101570.0,0.20295014]
[1736176805640,0.3628,101580.0,101570.0,0.20295014]
[1736176805948,0.3628,101580.0,101570.0,0.51225014]
[1736176806134,0.412024,101580.0,101570.0,0.51225014]
[1736176806442,0.412024,101580.0,101570.0,0.358529]
[1736176806737,0.410024,101580.0,101570.0,0.358529]
[1736176807343,0.049229,101570.0,101560.0,0.56375114]
[1736176807531,0.410029,101570.0,101560.0,0.04923]
[1736176807844,0.049234,101560.0,101550.0,0.3235]
[1736176808145,0.049234,101560.0,101540.0,0.20444224]
[1736176808146,0.049239,101550.0,101540.0,0.20444224]
[1736176808331,0.410039,101550.0,101540.0,0.0507211]
[1736176808537,0.410039,101550.0,101540.0,0.20444224]
[1736176808744,0.410036,101560.0,101550.0,0.049239]
[1736176808936,0.410036,101560.0,101540.0,0.20444124]
[1736176809131,0.049239,101550.0,101540.0,0.20444124]
[1736176809333,0.410039,101550.0,101540.0,0.20444124]
[1736176809646,0.049239,101550.0,101540.0,0.21344124]
[1736176809946,0.410036,101560.0,101550.0,0.049239]
[1736176811043,0.410036,101560.0,101550.0,0.050239]
[1736176811438,0.410036,101560.0,101550.0,0.054239]